Workbook

Sheet Доходы
H1: RESPPERSONS&=Заведующий отделом финансов=Жолудева И. &&:Исполнитель Специалист=Комбарова Н.
A2: ОТЧЕТ ОБ ИСПОЛНЕНИИ БЮДЖЕТА | F2: КОДЫ
E3: Форма по ОКУД | F3: 0503117 | H3: C:\117Y1.txt
A4: на 01 мая 2015 года | E4: Дата | F4: 01.05.2015 | H4: 01.05.2015
E5: по ОКПО | F5: 04032907 | H5: 117
A6: Наименование финансового органа: | B6: Администрация муниципального образования "Город Пикалево" Бокситогорского района Ленинградской области | E6: Глава по БК | F6: 001 | H6: 5
A7: Наименование публично-правового образования: | B7: Бюджет муниципального образования "Город Пикалево" Бокситогорского муниципального района Ленинградской области | E7: по ОКТМО | F7: 41603102
A8: Периодичность: годовая
A9: Единица измерения: руб. | E9: по ОКЕИ | F9: 383 | H9: 1
A10: 1. Доходы бюджета
A11: Наименование показателя | B11: Код строки | C11: Код дохода по бюджетной классификации | D11: Утвержденные бюджетные назначения | E11: Исполнено | F11: Неисполненные назначения
A18: 1 | B18: 2 | C18: 3 | D18: 4 | E18: 5 | F18: 6
A19: Доходы бюджета - всего | B19: 010 | C19: X | D19: 222401000.7 | E19: 52324379.01 | F19: =IF(OR(D19="-",E19=D19),"-",D19-IF(E19="-",0,E19)) -> 170076621.7
A20: в том числе:
A21: НАЛОГОВЫЕ И НЕНАЛОГОВЫЕ ДОХОДЫ | B21: 010 | C21: 000 10000000000000 000 | D21: 108579810.5 | E21: 28343408.67 | F21: =IF(OR(D21="-",E21=D21),"-",D21-IF(E21="-",0,E21)) -> 80236401.88
A22: НАЛОГИ НА ПРИБЫЛЬ, ДОХОДЫ | B22: 010 | C22: 000 10100000000000 000 | D22: 27987200 | E22: 8315665.47 | F22: 19671534.53
A23: Налог на доходы физических лиц | B23: 010 | C23: 000 10102000010000 110 | D23: 27987200 | E23: 8315665.47 | F23: 19671534.53
A24: Налог на доходы физических лиц с доходов, источником которых является налоговый агент, за исключением доходов, в отношении которых исчисление и уплата налога осуществляются в соответствии со статьями 227, 227.1 и 228 Налогового кодекса Российской Федерации | B24: 010 | C24: 000 10102010010000 110 | D24: 27943238.23 | E24: 8271703.7 | F24: 19671534.53
A25: Налог на доходы физических лиц с доходов, источником которых является налоговый агент, за исключением доходов, в отношении которых исчисление и уплата налога осуществляются в соответствии со статьями 227, 227.1 и 228 Налогового кодекса Российской Федерации (сумма платежа (перерасчеты, недоимка и задолженность по соответствующему платежу, в том числе по отмененному)) | B25: 010 | C25: 000 10102010011000 110 | D25: 27943238.23 | E25: 8264303.5 | F25: 19678934.73
A26: Налог на доходы физических лиц с доходов, источником которых является налоговый агент, за исключением доходов, в отношении которых исчисление и уплата налога осуществляются в соответствии со статьями 227, 227.1 и 228 Налогового кодекса Российской Федерации (пени по соответствующему платежу) | B26: 010 | C26: 000 10102010012100 110 | D26: - | E26: 2256.9 | F26: -
A27: Налог на доходы физических лиц с доходов, источником которых является налоговый агент, за исключением доходов, в отношении которых исчисление и уплата налога осуществляются в соответствии со статьями 227, 227.1 и 228 Налогового кодекса Российской Федерации (суммы денежных взысканий (штрафов) по соответствующему платежу согласно законодательству Российской Федерации) | B27: 010 | C27: 000 10102010013000 110 | D27: - | E27: 5143.3 | F27: -
A28: Налог на доходы физических лиц с доходов, полученных от осуществления деятельности физическими лицами, зарегистрированными в качестве индивидуальных предпринимателей, нотариусов, занимающихся частной практикой, адвокатов, учредивших адвокатские кабинеты и других лиц, занимающихся частной практикой в соответствии со статьей 227 Налогового кодекса Российской Федерации | B28: 010 | C28: 000 10102020010000 110 | D28: 19476.64 | E28: 19476.64 | F28: -
A29: Налог на доходы физических лиц с доходов, полученных от осуществления деятельности физическими лицами, зарегистрированными в качестве индивидуальных предпринимателей, нотариусов, занимающихся частной практикой, адвокатов, учредивших адвокатские кабинеты и других лиц, занимающихся частной практикой в соответствии со статьей 227 Налогового кодекса Российской Федерации (сумма платежа (перерасчеты, недоимка и задолженность по соответствующему платежу, в том числе по отмененному)) | B29: 010 | C29: 000 10102020011000 110 | D29: 19476.64 | E29: 18168.7 | F29: 1307.94
A30: Налог на доходы физических лиц с доходов, полученных от осуществления деятельности физическими лицами, зарегистрированными в качестве индивидуальных предпринимателей, нотариусов, занимающихся частной практикой, адвокатов, учредивших адвокатские кабинеты и других лиц, занимающихся частной практикой в соответствии со статьей 227 Налогового кодекса Российской Федерации (суммы денежных взысканий (штрафов) по соответствующему платежу согласно законодательству Российской Федерации) | B30: 010 | C30: 000 10102020013000 110 | D30: - | E30: 1307.94 | F30: -
A31: Налог на доходы физических лиц с доходов, полученных физическими лицами в соответствии со статьей 228 Налогового Кодекса Российской Федерации | B31: 010 | C31: 000 10102030010000 110 | D31: 24485.13 | E31: 24485.13 | F31: -
A32: Налог на доходы физических лиц с доходов, полученных физическими лицами в соответствии со статьей 228 Налогового Кодекса Российской Федерации (сумма платежа (перерасчеты, недоимка и задолженность по соответствующему платежу, в том числе по отмененному)) | B32: 010 | C32: 000 10102030011000 110 | D32: 24485.13 | E32: 18803.88 | F32: 5681.25
A33: Налог на доходы физических лиц с доходов, полученных физическими лицами в соответствии со статьей 228 Налогового кодекса Российской Федерации (пени по соответствующему платежу) | B33: 010 | C33: 000 10102030012100 110 | D33: - | E33: 3410.75 | F33: -
A34: Налог на доходы физических лиц с доходов, полученных физическими лицами в соответствии со статьей 228 Налогового Кодекса Российской Федерации (суммы денежных взысканий (штрафов) по соответствующему платежу согласно законодательству Российской Федерации) | B34: 010 | C34: 000 10102030013000 110 | D34: - | E34: 2270.5 | F34: -
A35: НАЛОГИ НА ТОВАРЫ (РАБОТЫ, УСЛУГИ), РЕАЛИЗУЕМЫЕ НА ТЕРРИТОРИИ РОССИЙСКОЙ ФЕДЕРАЦИИ | B35: 010 | C35: 000 10300000000000 000 | D35: 1854100 | E35: 532347.15 | F35: 1321752.85
A36: Акцизы по подакцизным товарам (продукции), производимым на территории Российской Федерации | B36: 010 | C36: 000 10302000010000 110 | D36: 1854100 | E36: 532347.15 | F36: 1321752.85
A37: Доходы от уплаты акцизов на дизельное топливо, зачисляемые в консолидированные бюджеты субъектов Российской Федерации | B37: 010 | C37: 000 10302230010000 110 | D37: 705000 | E37: 176315.78 | F37: 528684.22
A38: Доходы от уплаты акцизов на моторные масла для дизельных и (или) карбюраторных (инжекторных) двигателей, зачисляемые в консолидированные бюджеты субъектов Российской Федерации | B38: 010 | C38: 000 10302240010000 110 | D38: 20000 | E38: 4221.16 | F38: 15778.84
A39: Доходы от уплаты акцизов на автомобильный бензин, производимый на территории Российской Федерации, зачисляемые в консолидированные бюджеты субъектов Российской Федерации | B39: 010 | C39: 000 10302250010000 110 | D39: 1110000 | E39: 365098.45 | F39: 744901.55
A40: Доходы от уплаты акцизов на прямогонный бензин, производимый на территории Российской Федерации, зачисляемые в консолидированные бюджеты субъектов Российской Федерации | B40: 010 | C40: 000 10302260010000 110 | D40: 19100 | E40: -13288.24 | F40: 32388.24
A41: НАЛОГИ НА СОВОКУПНЫЙ ДОХОД | B41: 010 | C41: 000 10500000000000 000 | D41: 3600 | E41: 15694 | F41: -12094
A42: Единый сельскохозяйственный налог | B42: 010 | C42: 000 10503000010000 110 | D42: 3600 | E42: 15694 | F42: -12094
A43: Единый сельскохозяйственный налог | B43: 010 | C43: 000 10503010010000 110 | D43: 3600 | E43: 15694 | F43: -12094
A44: Единый сельскохозяйственный налог (сумма платежа (перерасчеты, недоимка и задолженность по соответствующему платежу, в том числе по отмененному)) | B44: 010 | C44: 000 10503010011000 110 | D44: 3600 | E44: 15694 | F44: -12094
A45: НАЛОГИ НА ИМУЩЕСТВО | B45: 010 | C45: 000 10600000000000 000 | D45: 42196700 | E45: 8679214.97 | F45: 33517485.03
A46: Налог на имущество физических лиц | B46: 010 | C46: 000 10601000000000 110 | D46: 1309700 | E46: 122253.3 | F46: 1187446.7
A47: Налог на имущество физических лиц, взимаемый по ставкам, применяемым к объектам налогообложения, расположенным в границах городских поселений | B47: 010 | C47: 000 10601030130000 110 | D47: 1309700 | E47: 122253.3 | F47: 1187446.7
A48: Налог на имущество физических лиц, взимаемый по ставкам, применяемым к объектам налогообложения, расположенным в границах городских поселений (сумма платежа (перерасчеты, недоимка и задолженность по соответствующему платежу, в том числе по отмененному) | B48: 010 | C48: 000 10601030131000 110 | D48: 1309700 | E48: 114540.37 | F48: 1195159.63
A49: Налог на имущество физических лиц, взимаемый по ставкам, применяемым к объектам налогообложения, расположенным в границах городских поселений (пени по соответствующему платежу) | B49: 010 | C49: 000 10601030132100 110 | D49: - | E49: 7712.93 | F49: -
A50: Транспортный налог | B50: 010 | C50: 000 10604000020000 110 | D50: 11356000 | E50: 1647239.08 | F50: 9708760.92
A51: Транспортный налог с организаций | B51: 010 | C51: 000 10604011020000 110 | D51: 2800000 | E51: 958145.73 | F51: 1841854.27
A52: Транспортный налог с организаций (сумма платежа (перерасчеты, недоимка и задолженность по соответствующему платежу, в том числе по отмененному)) | B52: 010 | C52: 000 10604011021000 110 | D52: 2800000 | E52: 956158.05 | F52: 1843841.95
A53: Транспортный налог с организаций (пени по соответствующему платежу) | B53: 010 | C53: 000 10604011022100 110 | D53: - | E53: 1987.68 | F53: =IF(OR(D53="-",E53=D53),"-",D53-IF(E53="-",0,E53)) -> -
A54: Транспортный налог с физических лиц | B54: 010 | C54: 000 10604012020000 110 | D54: 8556000 | E54: 689093.35 | F54: 7866906.65
A55: Транспортный налог с физических лиц (сумма платежа (перерасчеты, недоимка и задолженность по соответствующему платежу, в том числе по отмененному)) | B55: 010 | C55: 000 10604012021000 110 | D55: 8556000 | E55: 645129.53 | F55: 7910870.47
A56: Транспортный налог с физических лиц (пени по соответствующему платежу) | B56: 010 | C56: 000 10604012022100 110 | D56: - | E56: 42964.74 | F56: -
A57: Транспортный налог с физических лиц (проценты по соответствующему платежу) | B57: 010 | C57: 000 10604012022200 110 | D57: - | E57: 112.53 | F57: -
A58: Транспортный налог с физических лиц (прочие поступления) | B58: 010 | C58: 000 10604012024000 110 | D58: - | E58: 886.55 | F58: -
A59: Земельный налог | B59: 010 | C59: 000 10606000000000 110 | D59: 29531000 | E59: 6909722.59 | F59: 22621277.41
A60: Земельный налог с организаций | B60: 010 | C60: 000 10606030030000 110 | D60: 28861000 | E60: 6603257.68 | F60: 22257742.32
A61: Земельный налог с организаций, обладающих земельным участком, расположенным в границах городских поселений | B61: 010 | C61: 000 10606033130000 110 | D61: 28861000 | E61: 6603257.68 | F61: 22257742.32
A62: Земельный налог с физических лиц | B62: 010 | C62: 000 10606040000000 110 | D62: 670000 | E62: 306464.91 | F62: 363535.09
A63: Земельный налог с физических лиц, обладающих земельным участком, расположенным в границах городских поселений | B63: 010 | C63: 000 10606043130000 110 | D63: 670000 | E63: 306464.91 | F63: 363535.09
A64: ГОСУДАРСТВЕННАЯ ПОШЛИНА | B64: 010 | C64: 000 10800000000000 000 | D64: 48400 | E64: 15000 | F64: 33400
A65: Государственная пошлина за государственную регистрацию, а также за совершение прочих юридически значимых действий | B65: 010 | C65: 000 10807000010000 110 | D65: 48400 | E65: 15000 | F65: 33400
A66: Государственная пошлина за выдачу специального разрешения на движение по автомобильным дорогам транспортных средств, осуществляющих перевозки опасных, тяжеловесных и (или) крупногабаритных грузов | B66: 010 | C66: 000 10807170010000 110 | D66: 48400 | E66: 15000 | F66: 33400
A67: Государственная пошлина за выдачу органом местного самоуправления поселения специального разрешения на движение по автомобильным дорогам транспортных средств, осуществляющих перевозки опасных, тяжеловесных и (или) крупногабаритных грузов, зачисляемая в бюджеты поселений | B67: 010 | C67: 000 10807175010000 110 | D67: 48400 | E67: 15000 | F67: 33400
A68: ДОХОДЫ ОТ ИСПОЛЬЗОВАНИЯ ИМУЩЕСТВА, НАХОДЯЩЕГОСЯ В ГОСУДАРСТВЕННОЙ И МУНИЦИПАЛЬНОЙ СОБСТВЕННОСТИ | B68: 010 | C68: 000 11100000000000 000 | D68: 31865181.86 | E68: 8661334.18 | F68: 23203847.68
A69: Доходы, получаемые в виде арендной либо иной платы за передачу в возмездное пользование государственного и муниципального имущества (за исключением имущества бюджетных и автономных учреждений, а также имущества государственных и муниципальных унитарных предприятий, в том числе казенных) | B69: 010 | C69: 000 11105000000000 120 | D69: 29684181.86 | E69: 7832730.82 | F69: 21851451.04
A70: Доходы, получаемые в виде арендной платы за земельные участки, государственная собственность на которые не разграничена, а также средства от продажи права на заключение договоров аренды указанных земельных участков | B70: 010 | C70: 000 11105010000000 120 | D70: 17444300 | E70: 4152401.54 | F70: 13291898.46
A71: Доходы, получаемые в виде арендной платы за земельные участки, государственная собственность на которые не разграничена и которые расположены в границах городских поселений, а также средства от продажи права на заключение договоров аренды указанных земельных участков | B71: 010 | C71: 000 11105013130000 120 | D71: 17444300 | E71: 4152401.54 | F71: 13291898.46
A72: Доходы, получаемые в виде арендной платы за земли после разграничения государственной собственности на землю, а также средства от продажи права на заключение договоров аренды указанных земельных участков (за исключением земельных участков бюджетных и автономных учреждений) | B72: 010 | C72: 000 11105020000000 120 | D72: 1174000 | E72: 562285.9 | F72: 611714.1
A73: Доходы, получаемые в виде арендной платы, а также средства от продажи права на заключение договоров аренды за земли, находящиеся в собственности городских поселений (за исключением земельных участков муниципальных бюджетных и автономных учреждений) | B73: 010 | C73: 000 11105025130000 120 | D73: 1174000 | E73: 562285.9 | F73: 611714.1
A74: Доходы от сдачи в аренду имущества, находящегося в оперативном управлении органов государственной власти, органов местного самоуправления, государственных внебюджетных фондов и созданных ими учреждений (за исключением имущества бюджетных и автономных учреждений) | B74: 010 | C74: 000 11105030000000 120 | D74: 65881.86 | E74: 11592.8 | F74: 54289.06
A75: Доходы от сдачи в аренду имущества, находящегося в оперативном управлении органов управления городских поселений и созданных ими учреждений (за исключением имущества муниципальных бюджетных и автономных учреждений) | B75: 010 | C75: 000 11105035130000 120 | D75: 65881.86 | E75: 11592.8 | F75: 54289.06
A76: Доходы от сдачи в аренду имущества, составляющего государственную (муниципальную) казну (за исключением земельных участков) | B76: 010 | C76: 000 11105070000000 120 | D76: 11000000 | E76: 3106450.58 | F76: 7893549.42
A77: Доходы от сдачи в аренду имущества, составляющего казну городских поселений (за исключением земельных участков) | B77: 010 | C77: 000 11105075130000 120 | D77: 11000000 | E77: 3106450.58 | F77: 7893549.42
A78: Платежи от государственных и муниципальных унитарных предприятий | B78: 010 | C78: 000 11107000000000 120 | D78: 1000 | E78: - | F78: 1000
A79: Доходы от перечисления части прибыли государственных и муниципальных унитарных предприятий, остающейся после уплаты налогов и обязательных платежей | B79: 010 | C79: 000 11107010000000 120 | D79: 1000 | E79: - | F79: 1000
A80: Доходы от перечисления части прибыли, остающейся после уплаты налогов и иных обязательных платежей муниципальных унитарных предприятий, созданных городскими поселениями | B80: 010 | C80: 000 11107015130000 120 | D80: 1000 | E80: - | F80: 1000
A81: Прочие доходы от использования имущества и прав, находящихся в государственной и муниципальной собственности (за исключением имущества бюджетных и автономных учреждений, а также имущества государственных и муниципальных унитарных предприятий, в том числе казенных) | B81: 010 | C81: 000 11109000000000 120 | D81: 2180000 | E81: 828603.36 | F81: 1351396.64
A82: Прочие поступления от использования имущества, находящегося в государственной и муниципальной собственности (за исключением имущества бюджетных и автономных учреждений, а также имущества государственных и муниципальных унитарных предприятий, в том числе казенных) | B82: 010 | C82: 000 11109040000000 120 | D82: 2180000 | E82: 828603.36 | F82: 1351396.64
A83: Прочие поступления от использования имущества, находящегося в собственности городских поселений (за исключением имущества муниципальных бюджетных и автономных учреждений, а также имущества муниципальных унитарных предприятий, в том числе казенных) | B83: 010 | C83: 000 11109045130000 120 | D83: 2180000 | E83: 828603.36 | F83: 1351396.64
A84: ДОХОДЫ ОТ ОКАЗАНИЯ ПЛАТНЫХ УСЛУГ (РАБОТ) И КОМПЕНСАЦИИ ЗАТРАТ ГОСУДАРСТВА | B84: 010 | C84: 000 11300000000000 000 | D84: 156628.69 | E84: 115687.13 | F84: 40941.56
A85: Доходы от оказания платных услуг (работ) | B85: 010 | C85: 000 11301000000000 130 | D85: 156628.69 | E85: 115687.13 | F85: =IF(OR(D85="-",E85=D85),"-",D85-IF(E85="-",0,E85)) -> 40941.56
A86: Прочие доходы от оказания платных услуг (работ) | B86: 010 | C86: 000 11301990000000 130 | D86: 156628.69 | E86: 115687.13 | F86: 40941.56
A87: Прочие доходы от оказания платных услуг (работ) получателями средств бюджетов городских поселений | B87: 010 | C87: 000 11301995130000 130 | D87: 156628.69 | E87: 115687.13 | F87: =IF(OR(D87="-",E87=D87),"-",D87-IF(E87="-",0,E87)) -> 40941.56
A88: ДОХОДЫ ОТ ПРОДАЖИ МАТЕРИАЛЬНЫХ И НЕМАТЕРИАЛЬНЫХ АКТИВОВ | B88: 010 | C88: 000 11400000000000 000 | D88: 4200000 | E88: 1825837.73 | F88: 2374162.27
A89: Доходы от реализации имущества, находящегося в государственной и муниципальной собственности (за исключением имущества бюджетных и автономных учреждений, а также имущества государственных и муниципальных унитарных предприятий, в том числе казенных) | B89: 010 | C89: 000 11402000000000 000 | D89: 4000000 | E89: 1777487.65 | F89: 2222512.35
A90: Доходы от реализации имущества, находящегося в собственности городских поселений (за исключением движимого имущества муниципальных бюджетных и автономных учреждений, а также имущества муниципальных унитарных предприятий, в том числе казенных), в части реализации основных средств по указанному имуществу | B90: 010 | C90: 000 11402050130000 410 | D90: 4000000 | E90: 1777487.65 | F90: 2222512.35
A91: Доходы от реализации иного имущества, находящегося в собственности городских поселений (за исключением имущества муниципальных бюджетных и автономных учреждений, а также имущества муниципальных унитарных предприятий, в том числе казенных), в части реализации основных средств по указанному имуществу | B91: 010 | C91: 000 11402053130000 410 | D91: 4000000 | E91: 1777487.65 | F91: 2222512.35
A92: Доходы от продажи земельных участков, находящихся в государственной и муниципальной собственности (за исключением земельных участков бюджетных и автономных учреждений) | B92: 010 | C92: 000 11406000000000 430 | D92: 200000 | E92: 48350.08 | F92: 151649.92
A93: Доходы от продажи земельных участков, государственная собственность на которые не разграничена | B93: 010 | C93: 000 11406010000000 430 | D93: 200000 | E93: 48350.08 | F93: 151649.92
A94: Доходы от продажи земельных участков, государственная собственность на которые не разграничена и которые расположены в границах городских поселений | B94: 010 | C94: 000 11406013130000 430 | D94: 200000 | E94: 48350.08 | F94: 151649.92
A95: ШТРАФЫ, САНКЦИИ, ВОЗМЕЩЕНИЕ УЩЕРБА | B95: 010 | C95: 000 11600000000000 000 | D95: 250000 | E95: 122908.82 | F95: 127091.18
A96: Денежные взыскания (штрафы) за нарушение законодательства Российской Федерации о размещении заказов на поставки товаров, выполнение работ, оказание услуг | B96: 010 | C96: 000 11633000000000 140 | D96: - | E96: 67505.42 | F96: -
A97: Денежные взыскания (штрафы) за нарушение законодательства Российской Федерации о контрактной системе в сфере закупок товаров, работ, услуг для обеспечения государственных и муниципальных нужд для нужд городских поселений | B97: 010 | C97: 000 11633050130000 140 | D97: - | E97: 67505.42 | F97: -
A98: Поступления сумм в возмещение вреда, причиняемого автомобильным дорогам транспортными средствами, осуществляющими перевозки тяжеловесных и (или) крупногабаритных грузов | B98: 010 | C98: 000 11637000000000 140 | D98: 50000 | E98: 32327.64 | F98: 17672.36
A99: Поступления сумм в возмещение вреда, причиняемого автомобильным дорогам местного значения транспортными средствами, осуществляющими перевозки тяжеловесных и (или) крупногабаритных грузов, зачисляемые в бюджеты городских поселений | B99: 010 | C99: 000 11637040130000 140 | D99: 50000 | E99: 32327.64 | F99: 17672.36
A100: Прочие поступления от денежных взысканий (штрафов) и иных сумм в возмещение ущерба | B100: 010 | C100: 000 11690000000000 140 | D100: 200000 | E100: 23075.76 | F100: 176924.24
A101: Прочие поступления от денежных взысканий (штрафов) и иных сумм в возмещение ущерба, зачисляемые в бюджеты городских поселений | B101: 010 | C101: 000 11690050130000 140 | D101: 200000 | E101: 23075.76 | F101: 176924.24
A102: ПРОЧИЕ НЕНАЛОГОВЫЕ ДОХОДЫ | B102: 010 | C102: 000 11700000000000 000 | D102: 18000 | E102: 59719.22 | F102: -41719.22
A103: Невыясненные поступления | B103: 010 | C103: 000 11701000000000 180 | D103: - | E103: -8623.54 | F103: -
A104: Невыясненные поступления, зачисляемые в бюджеты городских поселений | B104: 010 | C104: 000 11701050130000 180 | D104: - | E104: -8623.54 | F104: -
A105: Прочие неналоговые доходы | B105: 010 | C105: 000 11705000000000 180 | D105: 18000 | E105: 68342.76 | F105: -50342.76
A106: Прочие неналоговые доходы бюджетов городских поселений | B106: 010 | C106: 000 11705050130000 180 | D106: 18000 | E106: 68342.76 | F106: -50342.76
A107: БЕЗВОЗМЕЗДНЫЕ ПОСТУПЛЕНИЯ | B107: 010 | C107: 000 20000000000000 000 | D107: 113821190.2 | E107: 23980970.34 | F107: 89840219.81
A108: БЕЗВОЗМЕЗДНЫЕ ПОСТУПЛЕНИЯ ОТ ДРУГИХ БЮДЖЕТОВ БЮДЖЕТНОЙ СИСТЕМЫ РОССИЙСКОЙ ФЕДЕРАЦИИ | B108: 010 | C108: 000 20200000000000 000 | D108: 113821190.2 | E108: 59496280.77 | F108: 54324909.38
A109: Дотации бюджетам субъектов Российской Федерации и муниципальных образований | B109: 010 | C109: 000 20201000000000 151 | D109: 6304300 | E109: 3961465 | F109: 2342835
A110: Дотации на выравнивание бюджетной обеспеченности | B110: 010 | C110: 000 20201001000000 151 | D110: 5206300 | E110: 2863465 | F110: 2342835
A111: Дотации бюджетам городских поселений на выравнивание бюджетной обеспеченности | B111: 010 | C111: 000 20201001130000 151 | D111: 5206300 | E111: 2863465 | F111: 2342835
A112: Дотации бюджетам на поддержку мер по обеспечению сбалансированности бюджетов | B112: 010 | C112: 000 20201003000000 151 | D112: 1098000 | E112: 1098000 | F112: -
A113: Дотации бюджетам городских поселений на поддержку мер по обеспечению сбалансированности бюджетов | B113: 010 | C113: 000 20201003130000 151 | D113: 1098000 | E113: 1098000 | F113: -
A114: Субсидии бюджетам бюджетной системы Российской Федерации (межбюджетные субсидии) | B114: 010 | C114: 000 20202000000000 151 | D114: 78154355.77 | E114: 54199355.77 | F114: 23955000
A115: Субсидии бюджетам на софинансирование капитальных вложений в объекты государственной (муниципальной) собственности | B115: 010 | C115: 000 20202077000000 151 | D115: 20000000 | E115: - | F115: =IF(OR(D115="-",E115=D115),"-",D115-IF(E115="-",0,E115)) -> 20000000
A116: Субсидии бюджетам городских поселений на софинансирование капитальных вложений в объекты муниципальной собственности | B116: 010 | C116: 000 20202077130000 151 | D116: 20000000 | E116: - | F116: 20000000
A117: Субсидии бюджетам муниципальных образований на обеспечение мероприятий по капитальному ремонту многоквартирных домов, переселению граждан из аварийного жилищного фонда и модернизации систем коммунальной инфраструктуры за счет средств бюджетов | B117: 010 | C117: 000 20202089000000 151 | D117: 46962489.77 | E117: 46962489.77 | F117: -
A118: Субсидии бюджетам городских поселений на обеспечение мероприятий по капитальному ремонту многоквартирных домов, переселению граждан из аварийного жилищного фонда и модернизации систем коммунальной инфраструктуры за счет средств бюджетов | B118: 010 | C118: 000 20202089130000 151 | D118: 46962489.77 | E118: 46962489.77 | F118: -
B119: 010 | C119: 000 20202089130000 151 | D119: 46962489.77 | E119: 46962489.77 | F119: =IF(OR(D119="-",E119=D119),"-",D119-IF(E119="-",0,E119)) -> -
A120: Субсидии бюджетам на осуществление дорожной деятельности в отношении автомобильных дорог общего пользования, а также капитального ремонта и ремонта дворовых территорий многоквартирных домов, проездов к дворовым территориям многоквартирных домов населенных пунктов | B120: 010 | C120: 000 20202216000000 151 | D120: 1696500 | E120: 1696500 | F120: -
A121: Субсидии бюджетам городских поселений на осуществление дорожной деятельности в отношении автомобильных дорог общего пользования, а также капитального ремонта и ремонта дворовых территорий многоквартирных домов, проездов к дворовым территориям многоквартирных домов населенных пунктов | B121: 010 | C121: 000 20202216130000 151 | D121: 1696500 | E121: 1696500 | F121: -
A122: Прочие субсидии | B122: 010 | C122: 000 20202999000000 151 | D122: 9495366 | E122: 5540366 | F122: 3955000
A123: Прочие субсидии бюджетам городских поселений | B123: 010 | C123: 000 20202999130000 151 | D123: 9495366 | E123: 5540366 | F123: 3955000
A124: Субвенции бюджетам субъектов Российской Федерации и муниципальных образований | B124: 010 | C124: 000 20203000000000 151 | D124: 2146826 | E124: 1185960 | F124: 960866
A125: Субвенции бюджетам на осуществление первичного воинского учета на территориях, где отсутствуют военные комиссариаты | B125: 010 | C125: 000 20203015000000 151 | D125: 1023626 | E125: 624360 | F125: 399266
A126: Субвенции бюджетам городских поселений на осуществление первичного воинского учета на территориях, где отсутствуют военные комиссариаты | B126: 010 | C126: 000 20203015130000 151 | D126: 1023626 | E126: 624360 | F126: 399266
A127: Субвенции местным бюджетам на выполнение передаваемых полномочий субъектов Российской Федерации | B127: 010 | C127: 000 20203024000000 151 | D127: 1123200 | E127: 561600 | F127: 561600
A128: Субвенции бюджетам городских поселений на выполнение передаваемых полномочий субъектов Российской Федерации | B128: 010 | C128: 000 20203024130000 151 | D128: 1123200 | E128: 561600 | F128: 561600
A129: Иные межбюджетные трансферты | B129: 010 | C129: 000 20204000000000 151 | D129: 27215708.38 | E129: 149500 | F129: 27066208.38
A130: Прочие межбюджетные трансферты, передаваемые бюджетам | B130: 010 | C130: 000 20204999000000 151 | D130: 27215708.38 | E130: 149500 | F130: 27066208.38
A131: Прочие межбюджетные трансферты, передаваемые бюджетам городских поселений | B131: 010 | C131: 000 20204999130000 151 | D131: 27215708.38 | E131: 149500 | F131: 27066208.38
A132: ВОЗВРАТ ОСТАТКОВ СУБСИДИЙ, СУБВЕНЦИЙ И ИНЫХ МЕЖБЮДЖЕТНЫХ ТРАНСФЕРТОВ, ИМЕЮЩИХ ЦЕЛЕВОЕ НАЗНАЧЕНИЕ, ПРОШЛЫХ ЛЕТ | B132: 010 | C132: 000 21900000000000 000 | D132: - | E132: -35515310.43 | F132: -
A133: Возврат остатков субсидий, субвенций и иных межбюджетных трансфертов, имеющих целевое назначение, прошлых лет из бюджетов городских поселений | B133: 010 | C133: 000 21905000130000 151 | D133: - | E133: -35515310.43 | F133: -

Sheet Расходы
A2: 2. Расходы бюджета | F2: Форма 0503117 с.2
A4: Наименование показателя | B4: Код строки | C4: Код расхода по бюджетной классификации | D4: Утвержденные бюджетные назначения | E4: Исполнено | F4: Неисполненные назначения
A12: 1 | B12: 2 | C12: 3 | D12: 4 | E12: 5 | F12: 6
A13: Расходы бюджета - всего | B13: 200 | C13: x | D13: 283484452.1 | E13: 40538873.59 | F13: =IF(OR(D13="-",E13=D13),"-",D13-IF(E13="-",0,E13)) -> 242945578.5
A14: в том числе:
A15: ОБЩЕГОСУДАРСТВЕННЫЕ ВОПРОСЫ | B15: 200 | C15: 000 0100 0000000 000 000 | D15: 46425441.97 | E15: 13114709.25 | F15: =IF(OR(D15="-",E15=D15),"-",D15-IF(E15="-",0,E15)) -> 33310732.72
A16: Функционирование законодательных (представительных) органов государственной власти и представительных органов муниципальных образований | B16: 200 | C16: 000 0103 0000000 000 000 | D16: 530178 | E16: 231452 | F16: 298726
A17: Обеспечение деятельности Совета депутатов | B17: 200 | C17: 000 0103 Г110000 000 000 | D17: 488178 | E17: 231452 | F17: 256726
A18: Расходы на обеспечение функций органов местного самоуправления в рамках обеспечения деятельности Совета депутатов | B18: 200 | C18: 000 0103 Г11Г015 000 000 | D18: 28471 | E18: 1600 | F18: 26871
A19: Иные выплаты персоналу государственных (муниципальных) органов, за исключением фонда оплаты труда | B19: 200 | C19: 000 0103 Г11Г015 122 000 | D19: 26111 | E19: - | F19: 26111
A20: Расходы | B20: 200 | C20: 000 0103 Г11Г015 122 200 | D20: 26111 | E20: - | F20: 26111
A21: Оплата труда и начисления на выплаты по оплате труда | B21: 200 | C21: 000 0103 Г11Г015 122 210 | D21: 20048 | E21: - | F21: 20048
A22: Прочие выплаты | B22: 200 | C22: 000 0103 Г11Г015 122 212 | D22: 20048 | E22: - | F22: 20048
A23: Оплата работ, услуг | B23: 200 | C23: 000 0103 Г11Г015 122 220 | D23: 6063 | E23: - | F23: 6063
A24: Транспортные услуги | B24: 200 | C24: 000 0103 Г11Г015 122 222 | D24: 3063 | E24: - | F24: 3063
A25: Прочие работы, услуги | B25: 200 | C25: 000 0103 Г11Г015 122 226 | D25: 3000 | E25: - | F25: 3000
A26: Закупка товаров, работ, услуг в сфере информационно-коммуникационных технологий | B26: 200 | C26: 000 0103 Г11Г015 242 000 | D26: 2360 | E26: 1600 | F26: 760
A27: Расходы | B27: 200 | C27: 000 0103 Г11Г015 242 200 | D27: 2360 | E27: 1600 | F27: 760
A28: Оплата работ, услуг | B28: 200 | C28: 000 0103 Г11Г015 242 220 | D28: 2360 | E28: 1600 | F28: 760
A29: Прочие работы, услуги | B29: 200 | C29: 000 0103 Г11Г015 242 226 | D29: 2360 | E29: 1600 | F29: 760
A30: Межбюджетные трансферты бюджетам муниципальных районов из бюджетов поселений на исполнение полномочий по осуществлению внешнего муниципального финансового контроля в рамках обеспечения деятельности Совета депутатов | B30: 200 | C30: 000 0103 Г11П703 000 000 | D30: 459707 | E30: 229852 | F30: 229855
A31: Иные межбюджетные трансферты | B31: 200 | C31: 000 0103 Г11П703 540 000 | D31: 459707 | E31: 229852 | F31: 229855
A32: Расходы | B32: 200 | C32: 000 0103 Г11П703 540 200 | D32: 459707 | E32: 229852 | F32: 229855
A33: Безвозмездные перечисления бюджетам | B33: 200 | C33: 000 0103 Г11П703 540 250 | D33: 459707 | E33: 229852 | F33: 229855
A34: Перечисления другим бюджетам бюджетной системы Российской Федерации | B34: 200 | C34: 000 0103 Г11П703 540 251 | D34: 459707 | E34: 229852 | F34: 229855
A35: Непрограммные расходы органов местного самоуправления по решению общегосударственных вопросов | B35: 200 | C35: 000 0103 Г210000 000 000 | D35: 42000 | E35: - | F35: 42000
A36: Премирование и награждение юридических и физических лиц по решению совета депутатов МО "Город Пикалево" вне системы оплаты труда в рамках непрограммных расходов органов местного самоуправления по решению общегосударственных вопросов | B36: 200 | C36: 000 0103 Г21Г301 000 000 | D36: 42000 | E36: - | F36: 42000
A37: Публичные нормативные выплаты гражданам несоциального характера | B37: 200 | C37: 000 0103 Г21Г301 330 000 | D37: 42000 | E37: - | F37: 42000
A38: Расходы | B38: 200 | C38: 000 0103 Г21Г301 330 200 | D38: 42000 | E38: - | F38: 42000
A39: Прочие расходы | B39: 200 | C39: 000 0103 Г21Г301 330 290 | D39: 42000 | E39: - | F39: 42000
A40: Функционирование Правительства Российской Федерации, высших исполнительных органов государственной власти субъектов Российской Федерации, местных администраций | B40: 200 | C40: 000 0104 0000000 000 000 | D40: 21776207.97 | E40: 4914562.62 | F40: 16861645.35
A41: Обеспечение деятельности главы администрации | B41: 200 | C41: 000 0104 Г120000 000 000 | D41: 1565225 | E41: 351593.39 | F41: 1213631.61
A42: Расходы на выплаты по оплате труда работников органов местного самоуправления в рамках обеспечения деятельности главы администрации | B42: 200 | C42: 000 0104 Г12Г014 000 000 | D42: 1533225 | E42: 349493.39 | F42: 1183731.61
A43: Фонд оплаты труда государственных (муниципальных) органов и взносы по обязательному социальному страхованию | B43: 200 | C43: 000 0104 Г12Г014 121 000 | D43: 1533225 | E43: 349493.39 | F43: 1183731.61
A44: Расходы | B44: 200 | C44: 000 0104 Г12Г014 121 200 | D44: 1533225 | E44: 349493.39 | F44: 1183731.61
A45: Оплата труда и начисления на выплаты по оплате труда | B45: 200 | C45: 000 0104 Г12Г014 121 210 | D45: 1533225 | E45: 349493.39 | F45: 1183731.61
A46: Заработная плата | B46: 200 | C46: 000 0104 Г12Г014 121 211 | D46: 1177592 | E46: 269322.79 | F46: 908269.21
A47: Начисления на выплаты по оплате труда | B47: 200 | C47: 000 0104 Г12Г014 121 213 | D47: 355633 | E47: 80170.6 | F47: 275462.4
A48: Расходы на обеспечение функций органов местного самоуправления в рамках обеспечения деятельности главы администрации | B48: 200 | C48: 000 0104 Г12Г015 000 000 | D48: 32000 | E48: 2100 | F48: 29900
A49: Иные выплаты персоналу государственных (муниципальных) органов, за исключением фонда оплаты труда | B49: 200 | C49: 000 0104 Г12Г015 122 000 | D49: 32000 | E49: 2100 | F49: 29900
A50: Расходы | B50: 200 | C50: 000 0104 Г12Г015 122 200 | D50: 32000 | E50: 2100 | F50: 29900
A51: Оплата труда и начисления на выплаты по оплате труда | B51: 200 | C51: 000 0104 Г12Г015 122 210 | D51: 32000 | E51: 2100 | F51: 29900
A52: Прочие выплаты | B52: 200 | C52: 000 0104 Г12Г015 122 212 | D52: 32000 | E52: 2100 | F52: 29900
A53: Обеспечение деятельности администрации | B53: 200 | C53: 000 0104 Г130000 000 000 | D53: 20210982.97 | E53: 4562969.23 | F53: 15648013.74
A54: Расходы на выплаты по оплате труда работников органов местного самоуправления в рамках обеспечения деятельности администрации | B54: 200 | C54: 000 0104 Г13Г014 000 000 | D54: 19544492 | E54: 4418521.71 | F54: 15125970.29
A55: Фонд оплаты труда государственных (муниципальных) органов и взносы по обязательному социальному страхованию | B55: 200 | C55: 000 0104 Г13Г014 121 000 | D55: 19544492 | E55: 4418521.71 | F55: 15125970.29
A56: Расходы | B56: 200 | C56: 000 0104 Г13Г014 121 200 | D56: 19544492 | E56: 4418521.71 | F56: 15125970.29
A57: Оплата труда и начисления на выплаты по оплате труда | B57: 200 | C57: 000 0104 Г13Г014 121 210 | D57: 19544492 | E57: 4418521.71 | F57: 15125970.29
A58: Заработная плата | B58: 200 | C58: 000 0104 Г13Г014 121 211 | D58: 15011131 | E58: 3462970.38 | F58: 11548160.62
A59: Начисления на выплаты по оплате труда | B59: 200 | C59: 000 0104 Г13Г014 121 213 | D59: 4533361 | E59: 955551.33 | F59: 3577809.67
A60: Расходы на обеспечение функций органов местного самоуправления в рамках обеспечения деятельности администрации | B60: 200 | C60: 000 0104 Г13Г015 000 000 | D60: 428790.97 | E60: 65214.19 | F60: 363576.78
A61: Иные выплаты персоналу государственных (муниципальных) органов, за исключением фонда оплаты труда | B61: 200 | C61: 000 0104 Г13Г015 122 000 | D61: 118000 | E61: 16471.65 | F61: 101528.35
A62: Расходы | B62: 200 | C62: 000 0104 Г13Г015 122 200 | D62: 118000 | E62: 16471.65 | F62: 101528.35
A63: Оплата труда и начисления на выплаты по оплате труда | B63: 200 | C63: 000 0104 Г13Г015 122 210 | D63: 30000 | E63: 5230.65 | F63: 24769.35
A64: Прочие выплаты | B64: 200 | C64: 000 0104 Г13Г015 122 212 | D64: 30000 | E64: 5230.65 | F64: 24769.35
A65: Оплата работ, услуг | B65: 200 | C65: 000 0104 Г13Г015 122 220 | D65: 88000 | E65: 11241 | F65: 76759
A66: Транспортные услуги | B66: 200 | C66: 000 0104 Г13Г015 122 222 | D66: 70000 | E66: 11241 | F66: 58759
A67: Прочие работы, услуги | B67: 200 | C67: 000 0104 Г13Г015 122 226 | D67: 18000 | E67: - | F67: 18000
A68: Закупка товаров, работ, услуг в сфере информационно-коммуникационных технологий | B68: 200 | C68: 000 0104 Г13Г015 242 000 | D68: 226218 | E68: 39590.16 | F68: 186627.84
A69: Расходы | B69: 200 | C69: 000 0104 Г13Г015 242 200 | D69: 226218 | E69: 39590.16 | F69: 186627.84
A70: Оплата работ, услуг | B70: 200 | C70: 000 0104 Г13Г015 242 220 | D70: 226218 | E70: 39590.16 | F70: 186627.84
A71: Услуги связи | B71: 200 | C71: 000 0104 Г13Г015 242 221 | D71: 78000 | E71: 16450 | F71: 61550
A72: Прочие работы, услуги | B72: 200 | C72: 000 0104 Г13Г015 242 226 | D72: 148218 | E72: 23140.16 | F72: 125077.84
A73: Прочая закупка товаров, работ и услуг для обеспечения государственных (муниципальных) нужд | B73: 200 | C73: 000 0104 Г13Г015 244 000 | D73: 77782 | E73: 6324.26 | F73: 71457.74
A74: Расходы | B74: 200 | C74: 000 0104 Г13Г015 244 200 | D74: 77782 | E74: 6324.26 | F74: 71457.74
A75: Оплата работ, услуг | B75: 200 | C75: 000 0104 Г13Г015 244 220 | D75: 77782 | E75: 6324.26 | F75: 71457.74
A76: Работы, услуги по содержанию имущества | B76: 200 | C76: 000 0104 Г13Г015 244 225 | D76: 20782 | E76: 3294.26 | F76: 17487.74
A77: Прочие работы, услуги | B77: 200 | C77: 000 0104 Г13Г015 244 226 | D77: 57000 | E77: 3030 | F77: 53970
A78: Уплата прочих налогов, сборов и иных платежей | B78: 200 | C78: 000 0104 Г13Г015 852 000 | D78: 2980 | E78: 1528.12 | F78: 1451.88
A79: Расходы | B79: 200 | C79: 000 0104 Г13Г015 852 200 | D79: 2980 | E79: 1528.12 | F79: =IF(OR(D79="-",E79=D79),"-",D79-IF(E79="-",0,E79)) -> 1451.88
A80: Прочие расходы | B80: 200 | C80: 000 0104 Г13Г015 852 290 | D80: 2980 | E80: 1528.12 | F80: 1451.88
A81: Уплата иных платежей | B81: 200 | C81: 000 0104 Г13Г015 853 000 | D81: 3810.97 | E81: 1300 | F81: 2510.97
A82: Расходы | B82: 200 | C82: 000 0104 Г13Г015 853 200 | D82: 3810.97 | E82: 1300 | F82: 2510.97
A83: Прочие расходы | B83: 200 | C83: 000 0104 Г13Г015 853 290 | D83: 3810.97 | E83: 1300 | F83: 2510.97
A84: Межбюджетные трансферты бюджетам муниципальных районов из бюджетов поселений на исполнение полномочий по осуществлению внешнего муниципального жилищного контроля в рамках непрограммных расходов органов местного самоуправления по вопросам жилищно-коммунального хозяйства | B84: 200 | C84: 000 0104 Г13П704 000 000 | D84: 237700 | E84: 79233.33 | F84: 158466.67
A85: Иные межбюджетные трансферты | B85: 200 | C85: 000 0104 Г13П704 540 000 | D85: 237700 | E85: 79233.33 | F85: 158466.67
A86: Расходы | B86: 200 | C86: 000 0104 Г13П704 540 200 | D86: 237700 | E86: 79233.33 | F86: 158466.67
A87: Безвозмездные перечисления бюджетам | B87: 200 | C87: 000 0104 Г13П704 540 250 | D87: 237700 | E87: 79233.33 | F87: 158466.67
A88: Перечисления другим бюджетам бюджетной системы Российской Федерации | B88: 200 | C88: 000 0104 Г13П704 540 251 | D88: 237700 | E88: 79233.33 | F88: 158466.67
A89: Резервные фонды | B89: 200 | C89: 000 0111 0000000 000 000 | D89: 386600 | E89: - | F89: 386600
A90: Непрограммные расходы органов местного самоуправления по решению общегосударственных вопросов | B90: 200 | C90: 000 0111 Г210000 000 000 | D90: 351600 | E90: - | F90: 351600
A91: Резервный фонд администрации в рамках непрограммных расходов органов местного самоуправления по решению общегосударственных вопросов | B91: 200 | C91: 000 0111 Г21Г101 000 000 | D91: 351600 | E91: - | F91: 351600
A92: Резервные средства | B92: 200 | C92: 000 0111 Г21Г101 870 000 | D92: 351600 | E92: - | F92: 351600
A93: Расходы | B93: 200 | C93: 000 0111 Г21Г101 870 200 | D93: 351600 | E93: - | F93: 351600
A94: Прочие расходы | B94: 200 | C94: 000 0111 Г21Г101 870 290 | D94: 351600 | E94: - | F94: 351600
A95: Подпрограмма "Предупреждение чрезвычайных ситуаций, защита населения и территорий от чрезвычайных ситуаций природного и техногенного характера, развитие гражданской обороны, обеспечение пожарной безопасности и безопасности на водных объектах" муниципальной программы "Безопасность в МО "Город Пикалево" | B95: 200 | C95: 000 0111 П410000 000 000 | D95: 35000 | E95: - | F95: 35000
A96: Резервный фонд администрации по ликвидации чрезвычайных ситуаций природного и техногенного характера и стихийных бедствий в рамках подпрограммы "Предупреждение чрезвычайных ситуаций, защита населения и территорий от чрезвычайных ситуаций природного и техногенного характера, развитие гражданской обороны, обеспечение пожарной безопасности и безопасности на водных объектах" муниципальной программы "Безопасность в МО "Город Пикалево" | B96: 200 | C96: 000 0111 П41П104 000 000 | D96: 35000 | E96: - | F96: 35000
A97: Резервные средства | B97: 200 | C97: 000 0111 П41П104 870 000 | D97: 35000 | E97: - | F97: 35000
A98: Расходы | B98: 200 | C98: 000 0111 П41П104 870 200 | D98: 35000 | E98: - | F98: 35000
A99: Прочие расходы | B99: 200 | C99: 000 0111 П41П104 870 290 | D99: 35000 | E99: - | F99: 35000
A100: Другие общегосударственные вопросы | B100: 200 | C100: 000 0113 0000000 000 000 | D100: 23732456 | E100: 7968694.63 | F100: 15763761.37
A101: Непрограммные расходы органов местного самоуправления по решению общегосударственных вопросов | B101: 200 | C101: 000 0113 Г210000 000 000 | D101: 15779664 | E101: 7637720.46 | F101: 8141943.54
A102: Обеспечение деятельности муниципальных казенных учреждений в рамках непрограммных расходов органов местного самоуправления по решению общегосударственных вопросов | B102: 200 | C102: 000 0113 Г21Г016 000 000 | D102: 7482209 | E102: 2004759.09 | F102: 5477449.91
A103: Фонд оплаты труда казенных учреждений и взносы по обязательному социальному страхованию | B103: 200 | C103: 000 0113 Г21Г016 111 000 | D103: 3251915.45 | E103: 905237.08 | F103: 2346678.37
A104: Расходы | B104: 200 | C104: 000 0113 Г21Г016 111 200 | D104: 3251915.45 | E104: 905237.08 | F104: 2346678.37
A105: Оплата труда и начисления на выплаты по оплате труда | B105: 200 | C105: 000 0113 Г21Г016 111 210 | D105: 3251915.45 | E105: 905237.08 | F105: 2346678.37
A106: Заработная плата | B106: 200 | C106: 000 0113 Г21Г016 111 211 | D106: 2497572.64 | E106: 702920.23 | F106: 1794652.41
A107: Начисления на выплаты по оплате труда | B107: 200 | C107: 000 0113 Г21Г016 111 213 | D107: 754342.81 | E107: 202316.85 | F107: 552025.96
A108: Иные выплаты персоналу казенных учреждений, за исключением фонда оплаты труда | B108: 200 | C108: 000 0113 Г21Г016 112 000 | D108: 35700 | E108: 9900 | F108: 25800
A109: Расходы | B109: 200 | C109: 000 0113 Г21Г016 112 200 | D109: 35700 | E109: 9900 | F109: 25800
A110: Оплата труда и начисления на выплаты по оплате труда | B110: 200 | C110: 000 0113 Г21Г016 112 210 | D110: 26400 | E110: 8000 | F110: 18400
A111: Прочие выплаты | B111: 200 | C111: 000 0113 Г21Г016 112 212 | D111: 26400 | E111: 8000 | F111: 18400
A112: Оплата работ, услуг | B112: 200 | C112: 000 0113 Г21Г016 112 220 | D112: 9300 | E112: 1900 | F112: 7400
A113: Прочие работы, услуги | B113: 200 | C113: 000 0113 Г21Г016 112 226 | D113: 9300 | E113: 1900 | F113: 7400
A114: Закупка товаров, работ, услуг в сфере информационно-коммуникационных технологий | B114: 200 | C114: 000 0113 Г21Г016 242 000 | D114: 1010581 | E114: 205679.05 | F114: 804901.95
A115: Расходы | B115: 200 | C115: 000 0113 Г21Г016 242 200 | D115: 592901 | E115: 137358.05 | F115: 455542.95
A116: Оплата работ, услуг | B116: 200 | C116: 000 0113 Г21Г016 242 220 | D116: 592901 | E116: 137358.05 | F116: 455542.95
A117: Услуги связи | B117: 200 | C117: 000 0113 Г21Г016 242 221 | D117: 397728 | E117: 68136.51 | F117: 329591.49
A118: Работы, услуги по содержанию имущества | B118: 200 | C118: 000 0113 Г21Г016 242 225 | D118: 25760 | E118: 800 | F118: 24960
A119: Прочие работы, услуги | B119: 200 | C119: 000 0113 Г21Г016 242 226 | D119: 169413 | E119: 68421.54 | F119: 100991.46
A120: Поступление нефинансовых активов | B120: 200 | C120: 000 0113 Г21Г016 242 300 | D120: 417680 | E120: 68321 | F120: 349359
A121: Увеличение стоимости основных средств | B121: 200 | C121: 000 0113 Г21Г016 242 310 | D121: 121980 | E121: - | F121: 121980
A122: Увеличение стоимости материальных запасов | B122: 200 | C122: 000 0113 Г21Г016 242 340 | D122: 295700 | E122: 68321 | F122: 227379
A123: Прочая закупка товаров, работ и услуг для обеспечения государственных (муниципальных) нужд | B123: 200 | C123: 000 0113 Г21Г016 244 000 | D123: 3179396.55 | E123: 882587.46 | F123: 2296809.09
A124: Расходы | B124: 200 | C124: 000 0113 Г21Г016 244 200 | D124: 2288059.55 | E124: 736143.86 | F124: 1551915.69
A125: Оплата работ, услуг | B125: 200 | C125: 000 0113 Г21Г016 244 220 | D125: 2173139.55 | E125: 713822.36 | F125: 1459317.19
A126: Услуги связи | B126: 200 | C126: 000 0113 Г21Г016 244 221 | D126: 46500 | E126: 14941.05 | F126: 31558.95
A127: Коммунальные услуги | B127: 200 | C127: 000 0113 Г21Г016 244 223 | D127: 726746 | E127: 315181.45 | F127: 411564.55
A128: Арендная плата за пользование имуществом | B128: 200 | C128: 000 0113 Г21Г016 244 224 | D128: 81883 | E128: 81833 | F128: 50
A129: Работы, услуги по содержанию имущества | B129: 200 | C129: 000 0113 Г21Г016 244 225 | D129: 684216 | E129: 167004.54 | F129: 517211.46
A130: Прочие работы, услуги | B130: 200 | C130: 000 0113 Г21Г016 244 226 | D130: 633794.55 | E130: 134862.32 | F130: 498932.23
A131: Прочие расходы | B131: 200 | C131: 000 0113 Г21Г016 244 290 | D131: 114920 | E131: 22321.5 | F131: 92598.5
A132: Поступление нефинансовых активов | B132: 200 | C132: 000 0113 Г21Г016 244 300 | D132: 891337 | E132: 146443.6 | F132: 744893.4
A133: Увеличение стоимости основных средств | B133: 200 | C133: 000 0113 Г21Г016 244 310 | D133: 48400 | E133: 2193 | F133: 46207
A134: Увеличение стоимости материальных запасов | B134: 200 | C134: 000 0113 Г21Г016 244 340 | D134: 842937 | E134: 144250.6 | F134: 698686.4
A135: Уплата прочих налогов, сборов и иных платежей | B135: 200 | C135: 000 0113 Г21Г016 852 000 | D135: 4616 | E135: 1355.5 | F135: 3260.5
A136: Расходы | B136: 200 | C136: 000 0113 Г21Г016 852 200 | D136: 4616 | E136: 1355.5 | F136: 3260.5
A137: Прочие расходы | B137: 200 | C137: 000 0113 Г21Г016 852 290 | D137: 4616 | E137: 1355.5 | F137: 3260.5
A138: Обеспечение управления активами и приватизации муниципального имущества в рамках непрограммных расходов органов местного самоуправления по решению общегосударственных вопросов | B138: 200 | C138: 000 0113 Г21Г103 000 000 | D138: 600000 | E138: 3500 | F138: 596500
A139: Прочая закупка товаров, работ и услуг для обеспечения государственных (муниципальных) нужд | B139: 200 | C139: 000 0113 Г21Г103 244 000 | D139: 600000 | E139: 3500 | F139: 596500
A140: Расходы | B140: 200 | C140: 000 0113 Г21Г103 244 200 | D140: 600000 | E140: 3500 | F140: 596500
A141: Оплата работ, услуг | B141: 200 | C141: 000 0113 Г21Г103 244 220 | D141: 600000 | E141: 3500 | F141: 596500
A142: Прочие работы, услуги | B142: 200 | C142: 000 0113 Г21Г103 244 226 | D142: 600000 | E142: 3500 | F142: 596500
A143: Содержание и обслуживание объектов муниципального имущества в рамках непрограммных расходов органов местного самоуправления по решению общегосударственных вопросов | B143: 200 | C143: 000 0113 Г21Г104 000 000 | D143: 7422275 | E143: 5605345.37 | F143: =IF(OR(D143="-",E143=D143),"-",D143-IF(E143="-",0,E143)) -> 1816929.63
A144: Прочая закупка товаров, работ и услуг для обеспечения государственных (муниципальных) нужд | B144: 200 | C144: 000 0113 Г21Г104 244 000 | D144: 7043460 | E144: 5508499.31 | F144: 1534960.69
A145: Расходы | B145: 200 | C145: 000 0113 Г21Г104 244 200 | D145: 6365599.61 | E145: 5508499.31 | F145: 857100.3
A146: Оплата работ, услуг | B146: 200 | C146: 000 0113 Г21Г104 244 220 | D146: 6365599.61 | E146: 5508499.31 | F146: 857100.3
A147: Работы, услуги по содержанию имущества | B147: 200 | C147: 000 0113 Г21Г104 244 225 | D147: 6365599.61 | E147: 5508499.31 | F147: 857100.3
A148: Поступление нефинансовых активов | B148: 200 | C148: 000 0113 Г21Г104 244 300 | D148: 677860.39 | E148: - | F148: 677860.39
A149: Увеличение стоимости основных средств | B149: 200 | C149: 000 0113 Г21Г104 244 310 | D149: 677860.39 | E149: - | F149: 677860.39
A150: Субсидии юридическим лицам (кроме некоммерческих организаций), индивидуальным предпринимателям, физическим лицам | B150: 200 | C150: 000 0113 Г21Г104 810 000 | D150: 378815 | E150: 96846.06 | F150: 281968.94
A151: Расходы | B151: 200 | C151: 000 0113 Г21Г104 810 200 | D151: 378815 | E151: 96846.06 | F151: 281968.94
A152: Безвозмездные перечисления организациям | B152: 200 | C152: 000 0113 Г21Г104 810 240 | D152: 378815 | E152: 96846.06 | F152: 281968.94
A153: Безвозмездные перечисления организациям, за исключением государственных и муниципальных организаций | B153: 200 | C153: 000 0113 Г21Г104 810 242 | D153: 378815 | E153: 96846.06 | F153: 281968.94
A154: Ежегодный членский взнос в Ассоциацию "Совет муниципальных образований Ленинградской области" в рамках непрограммных расходов органов местного самоуправления по решению общегосударственных вопросов | B154: 200 | C154: 000 0113 Г21Г105 000 000 | D154: 36655 | E154: - | F154: 36655
A155: Уплата иных платежей | B155: 200 | C155: 000 0113 Г21Г105 853 000 | D155: 36655 | E155: - | F155: 36655
A156: Расходы | B156: 200 | C156: 000 0113 Г21Г105 853 200 | D156: 36655 | E156: - | F156: 36655
A157: Прочие расходы | B157: 200 | C157: 000 0113 Г21Г105 853 290 | D157: 36655 | E157: - | F157: 36655
A158: Ежегодный членский взнос в Союз малых городов Российской Федерации в рамках непрограммных расходов органов местного самоуправления по решению общегосударственных вопросов | B158: 200 | C158: 000 0113 Г21Г106 000 000 | D158: 21525 | E158: - | F158: 21525
A159: Уплата иных платежей | B159: 200 | C159: 000 0113 Г21Г106 853 000 | D159: 21525 | E159: - | F159: 21525
A160: Расходы | B160: 200 | C160: 000 0113 Г21Г106 853 200 | D160: 21525 | E160: - | F160: 21525
A161: Прочие расходы | B161: 200 | C161: 000 0113 Г21Г106 853 290 | D161: 21525 | E161: - | F161: 21525
A162: Обеспечение органов местного самоуправления статистической информацией в рамках непрограммных расходов органов местного самоуправления по решению общегосударственных вопросов | B162: 200 | C162: 000 0113 Г21Г107 000 000 | D162: 83000 | E162: 24116 | F162: 58884
A163: Прочая закупка товаров, работ и услуг для обеспечения государственных (муниципальных) нужд | B163: 200 | C163: 000 0113 Г21Г107 244 000 | D163: 83000 | E163: 24116 | F163: 58884
A164: Расходы | B164: 200 | C164: 000 0113 Г21Г107 244 200 | D164: 83000 | E164: 24116 | F164: 58884
A165: Оплата работ, услуг | B165: 200 | C165: 000 0113 Г21Г107 244 220 | D165: 83000 | E165: 24116 | F165: 58884
A166: Прочие работы, услуги | B166: 200 | C166: 000 0113 Г21Г107 244 226 | D166: 83000 | E166: 24116 | F166: 58884
A167: Мероприятия по диспансеризации лиц, замещающих муниципальные должности и должности муниципальных служащих в рамках непрограммных расходов органов местного самоуправления по решению общегосударственных вопросов | B167: 200 | C167: 000 0113 Г21Г108 000 000 | D167: 84000 | E167: - | F167: 84000
A168: Прочая закупка товаров, работ и услуг для обеспечения государственных (муниципальных) нужд | B168: 200 | C168: 000 0113 Г21Г108 244 000 | D168: 84000 | E168: - | F168: 84000
A169: Расходы | B169: 200 | C169: 000 0113 Г21Г108 244 200 | D169: 84000 | E169: - | F169: 84000
A170: Оплата работ, услуг | B170: 200 | C170: 000 0113 Г21Г108 244 220 | D170: 84000 | E170: - | F170: 84000
A171: Прочие работы, услуги | B171: 200 | C171: 000 0113 Г21Г108 244 226 | D171: 84000 | E171: - | F171: 84000
A172: Исполнение судебных актов, вступивших в законную силу, по искам к МО "Город Пикалево" в рамках непрограммных расходов органов местного самоуправления по решению общегосударственных вопросов | B172: 200 | C172: 000 0113 Г21Г109 000 000 | D172: 50000 | E172: - | F172: 50000
A173: Исполнение судебных актов Российской Федерации и мировых соглашений по возмещению вреда, причиненного в результате незаконных действий (бездействия) органов государственной власти (государственных органов), органов местного самоуправления либо должностных лиц этих органов, а также в результате деятельности казенных учреждений | B173: 200 | C173: 000 0113 Г21Г109 831 000 | D173: 50000 | E173: - | F173: 50000
A174: Расходы | B174: 200 | C174: 000 0113 Г21Г109 831 200 | D174: 50000 | E174: - | F174: 50000
A175: Прочие расходы | B175: 200 | C175: 000 0113 Г21Г109 831 290 | D175: 50000 | E175: - | F175: 50000
A176: Подпрограмма "Обеспечение правопорядка и профилактика правонарушений" муниципальной программы "Безопасность в МО "Город Пикалево" | B176: 200 | C176: 000 0113 П420000 000 000 | D176: 7543200 | E176: 268157.97 | F176: 7275042.03
A177: Создание в МО "Город Пикалево" аппаратно-программного комплекса автоматизированной информационной системы "Безопасный город" за счет средств областного бюджета в рамках подпрограммы "Обеспечение правопорядка и профилактика правонарушений" муниципальной программы "Безопасность в МО "Город Пикалево" | B177: 200 | C177: 000 0113 П427043 000 000 | D177: 5700000 | E177: - | F177: 5700000
A178: Прочая закупка товаров, работ и услуг для обеспечения государственных (муниципальных) нужд | B178: 200 | C178: 000 0113 П427043 244 000 | D178: 5700000 | E178: - | F178: 5700000
A179: Расходы | B179: 200 | C179: 000 0113 П427043 244 200 | D179: 3505370 | E179: - | F179: 3505370
A180: Оплата работ, услуг | B180: 200 | C180: 000 0113 П427043 244 220 | D180: 3505370 | E180: - | F180: 3505370
A181: Прочие работы, услуги | B181: 200 | C181: 000 0113 П427043 244 226 | D181: 3505370 | E181: - | F181: 3505370
A182: Поступление нефинансовых активов | B182: 200 | C182: 000 0113 П427043 244 300 | D182: 2194630 | E182: - | F182: 2194630
A183: Увеличение стоимости основных средств | B183: 200 | C183: 000 0113 П427043 244 310 | D183: 2194630 | E183: - | F183: 2194630
A184: Профилактика безнадзорности и правонарушений несовершеннолетних за счет средств субвенции областного бюджета в рамках подпрограммы "Обеспечение правопорядка и профилактика правонарушений" государственной программы Ленинградской области "Безопасность Ленинградской области" в рамках подпрограммы "Обеспечение правопорядка и профилактика правонарушений" муниципальной программы "Безопасность в МО "Город Пикалево" | B184: 200 | C184: 000 0113 П427133 000 000 | D184: 555100 | E184: 133083.32 | F184: 422016.68
A185: Фонд оплаты труда государственных (муниципальных) органов и взносы по обязательному социальному страхованию | B185: 200 | C185: 000 0113 П427133 121 000 | D185: 529872 | E185: 128055.94 | F185: 401816.06
A186: Расходы | B186: 200 | C186: 000 0113 П427133 121 200 | D186: 529872 | E186: 128055.94 | F186: 401816.06
A187: Оплата труда и начисления на выплаты по оплате труда | B187: 200 | C187: 000 0113 П427133 121 210 | D187: 529872 | E187: 128055.94 | F187: 401816.06
A188: Заработная плата | B188: 200 | C188: 000 0113 П427133 121 211 | D188: 406968 | E188: 101136.67 | F188: 305831.33
A189: Начисления на выплаты по оплате труда | B189: 200 | C189: 000 0113 П427133 121 213 | D189: 122904 | E189: 26919.27 | F189: 95984.73
A190: Иные выплаты персоналу государственных (муниципальных) органов, за исключением фонда оплаты труда | B190: 200 | C190: 000 0113 П427133 122 000 | D190: 800 | E190: 200 | F190: 600
A191: Расходы | B191: 200 | C191: 000 0113 П427133 122 200 | D191: 800 | E191: 200 | F191: 600
A192: Оплата труда и начисления на выплаты по оплате труда | B192: 200 | C192: 000 0113 П427133 122 210 | D192: 800 | E192: 200 | F192: 600
A193: Прочие выплаты | B193: 200 | C193: 000 0113 П427133 122 212 | D193: 800 | E193: 200 | F193: 600
A194: Закупка товаров, работ, услуг в сфере информационно-коммуникационных технологий | B194: 200 | C194: 000 0113 П427133 242 000 | D194: 16995 | E194: 3679.2 | F194: 13315.8
A195: Расходы | B195: 200 | C195: 000 0113 П427133 242 200 | D195: 12195 | E195: 3679.2 | F195: 8515.8
A196: Оплата работ, услуг | B196: 200 | C196: 000 0113 П427133 242 220 | D196: 12195 | E196: 3679.2 | F196: 8515.8
A197: Услуги связи | B197: 200 | C197: 000 0113 П427133 242 221 | D197: 12195 | E197: 3679.2 | F197: 8515.8
A198: Поступление нефинансовых активов | B198: 200 | C198: 000 0113 П427133 242 300 | D198: 4800 | E198: - | F198: 4800
A199: Увеличение стоимости материальных запасов | B199: 200 | C199: 000 0113 П427133 242 340 | D199: 4800 | E199: - | F199: 4800
A200: Прочая закупка товаров, работ и услуг для обеспечения государственных (муниципальных) нужд | B200: 200 | C200: 000 0113 П427133 244 000 | D200: 7433 | E200: 1148.18 | F200: 6284.82
A201: Расходы | B201: 200 | C201: 000 0113 П427133 244 200 | D201: 6400 | E201: 1148.18 | F201: 5251.82
A202: Оплата работ, услуг | B202: 200 | C202: 000 0113 П427133 244 220 | D202: 6400 | E202: 1148.18 | F202: 5251.82
A203: Услуги связи | B203: 200 | C203: 000 0113 П427133 244 221 | D203: 6400 | E203: 1148.18 | F203: 5251.82
A204: Поступление нефинансовых активов | B204: 200 | C204: 000 0113 П427133 244 300 | D204: 1033 | E204: - | F204: 1033
A205: Увеличение стоимости материальных запасов | B205: 200 | C205: 000 0113 П427133 244 340 | D205: 1033 | E205: - | F205: 1033
A206: Мероприятия в сфере административных правоотношений за счет средств субвенции областного бюджета в рамках подпрограммы "Обеспечение правопорядка и профилактика правонарушений" государственной программы Ленинградской области "Безопасность Ленинградской области" в рамках подпрограммы "Обеспечение правопорядка и профилактика правонарушений" муниципальной программы "Безопасность в МО "Город Пикалево" | B206: 200 | C206: 000 0113 П427134 000 000 | D206: 568100 | E206: 135074.65 | F206: 433025.35
A207: Фонд оплаты труда государственных (муниципальных) органов и взносы по обязательному социальному страхованию | B207: 200 | C207: 000 0113 П427134 121 000 | D207: 529872 | E207: 122741.09 | F207: =IF(OR(D207="-",E207=D207),"-",D207-IF(E207="-",0,E207)) -> 407130.91
A208: Расходы | B208: 200 | C208: 000 0113 П427134 121 200 | D208: 529872 | E208: 122741.09 | F208: 407130.91
A209: Оплата труда и начисления на выплаты по оплате труда | B209: 200 | C209: 000 0113 П427134 121 210 | D209: 529872 | E209: 122741.09 | F209: 407130.91
... 374 more rows

Sheet ExportParams (hidden)
A1: EXPORT_SRC_KIND | B1: ПосОБР
A2: EXPORT_PARAM_SRC_KIND | B2: 3
A3: EXPORT_SRC_CODE | B3: 45012
A4: EXPORT_VB_CODE | B4: 3

Sheet Источники
A1: Форма 0503117 с.3
A2: 3. Источники финансирования дефицита бюджета
A4: Наименование показателя | B4: Код строки | C4: Код источника финансирования дефицита бюджета по бюджетной классификации | D4: Утвержденные бюджетные назначения | E4: Исполнено | F4: Неисполненные назначения
A6: 1 | B6: 2 | C6: 3 | D6: 4 | E6: 5 | F6: 6
A7: Источники финансирования дефицита бюджета - всего | B7: 500 | C7: *** 90000000000000 000 | D7: 61083451.37 | E7: -11785505.42 | F7: =SUM(D7-E7) -> 72868956.79
A8: в том числе:
A9: источники внутреннего финансирования бюджета | B9: 520 | C9: *** 01000000000000 000 | D9: 10804014 | E9: 760000 | F9: =SUM(D9-E9) -> 10044014
A10: из них:
A11: Кредиты кредитных организаций в валюте Российской Федерации | B11: 520 | C11: 000 01020000000000 000 | D11: 6224700 | E11: - | F11: 6224700
A12: Получение кредитов от кредитных организаций в валюте Российской Федерации | B12: 520 | C12: 000 01020000000000 700 | D12: 10000000 | E12: - | F12: 10000000
A13: Получение кредитов от кредитных организаций бюджетами поселений в валюте Российской Федерации | B13: 520 | C13: 000 01020000130000 710 | D13: 10000000 | E13: - | F13: 10000000
A14: Погашение кредитов, предоставленных кредитными организациями в валюте Российской Федерации | B14: 520 | C14: 000 01020000000000 800 | D14: -3775300 | E14: - | F14: -3775300
A15: Погашение бюджетами поселений кредитов от кредитных организаций в валюте Российской Федерации | B15: 520 | C15: 000 01020000130000 810 | D15: -3775300 | E15: - | F15: -3775300
A16: Бюджетные кредиты от других бюджетов бюджетной системы Российской Федерации | B16: 520 | C16: 000 01030000000000 000 | D16: -3534286 | E16: - | F16: -3534286
A17: Бюджетные кредиты от других бюджетов бюджетной системы Российской Федерации в валюте Российской Федерации | B17: 520 | C17: 000 01030100000000 000 | D17: -3534286 | E17: - | F17: -3534286
A18: Погашение бюджетых кредитов, полученных от других бюджетов бюджетной системы Российской Федерации в валюте Российской Федерации | B18: 520 | C18: 000 01030100000000 800 | D18: -3534286 | E18: - | F18: -3534286
A19: Погашение бюджетами поселений кредитов от других бюджетов бюджетной системы Российской Федерации в валюте Российской Федерации | B19: 520 | C19: 000 01030100130000 810 | D19: -3534286 | E19: - | F19: -3534286
A20: Иные источники внутреннего финансирования дефицита бюджета | B20: 520 | C20: 000 01060000000000 000 | D20: 8113600 | E20: 760000 | F20: =SUM(D20)-E20 -> 7353600
A21: Акции и иные формы участия в капитале, находящихся в государственной и муниципальной собственности | B21: 520 | C21: 000 01060100000000 000 | D21: 5713600 | E21: - | F21: 5713600
A22: Средства от продажи акций и иных форм участия в капитале, находящихся в государственной и муниципальной собственности | B22: 520 | C22: 000 01060100000000 630 | D22: 5713600 | E22: - | F22: 5713600
A23: Средства от продажи акций и иных форм участия в капитале, находящихся в собственности поселений | B23: 520 | C23: 000 01060100130000 630 | D23: 5713600 | E23: - | F23: 5713600
A24: Исполнение государственных и муниципальных гарантий | B24: 520 | C24: 000 01060400000000 000 | D24: -7779403 | E24: - | F24: -7779403
A25: Исполнение государственных и муниципальных гарантий в валюте Российской Федерации | B25: 520 | C25: 000 01060401000000 000 | D25: -7779403 | E25: - | F25: -7779403
A26: Исполнение государственных и муниципальных гарантий в валюте Российской Федерации в случае, если исполнение гарантом муниципальных гарантий ведет к возникновению права регрессного требования гаранта к принципалу либо обусловлено уступкой гаранту прав требования бенефициара к принципалу | B26: 520 | C26: 000 01060401000000 800 | D26: -7779403 | E26: - | F26: -7779403
A27: Исполнение муниципальных гарантий поселений в валюте Российской Федерации в случае, если исполнение гарантом муниципальных гарантий ведет к возникновению права регрессного требования гаранта к принципалу либо обусловлено уступкой гаранту прав требования бенефициара к принципалу | B27: 520 | C27: 000 01060401130000 810 | D27: -7779403 | E27: - | F27: -7779403
A28: Прочие бюджетные кредиты (ссуды), предоставленные внутри страны | B28: 520 | C28: 000 01060800000000 000 | D28: 10179403 | E28: 760000 | F28: =SUM(D28)-E28 -> 9419403
A29: Возврат прочих бюджетных кредитов (ссуд), предоставленные внутри страны | B29: 520 | C29: 000 01060800000000 600 | D29: 10179403 | E29: 760000 | F29: =SUM(D29)-E29 -> 9419403
A30: Возврат прочих бюджетных кредитов (ссуд), предоставленных бюджетами поселений внутри страны | B30: 520 | C30: 000 01060800130000 640 | D30: 10179403 | E30: 545000 | F30: =SUM(D30)-E30 -> 9634403
A31: Изменение остатков средств | B31: 700 | C31: *** 01000000000000 000 | D31: 50279437.37 | E31: -12545505.42 | F31: =SUM(D31-E31) -> 62824942.79
A32: Изменение остатков средств на счетах по учету средств бюджета | B32: 700 | C32: *** 01050000000000 000 | D32: 50279437.37 | E32: -12545505.42 | F32: =SUM(D32-E32) -> 62824942.79
A33: увеличение остатков средств бюджетов | B33: 710 | C33: 000 01050000000000 500 | D33: -248294003.7 | E33: -103305483 | F33: x
A34: увеличение прочих остатков средств бюджетов | B34: 710 | C34: 000 01050200000000 500 | D34: -248294003.7 | E34: -103305483 | F34: x
A35: увеличение прочих остатков денежных средств бюджетов | B35: 710 | C35: 000 01050201000000 510 | D35: -248294003.7 | E35: -103305483 | F35: x
A36: Увеличение прочих остатков денежных средств бюджетов поселений | B36: 710 | C36: 000 01050201130000 510 | D36: -248294003.7 | E36: -103305483 | F36: x
A37: уменьшение остатков средств бюджетов | B37: 720 | C37: 000 01050000000000 600 | D37: 298573441.1 | E37: 90759977.56 | F37: x
A38: уменьшение прочих остатков средств бюджетов | B38: 720 | C38: 000 01050200000000 600 | D38: 298573441.1 | E38: 90759977.56 | F38: x
A39: уменьшение прочих остатков денежных средств бюджетов | B39: 720 | C39: 000 01050201000000 610 | D39: 298573441.1 | E39: 90759977.56 | F39: x
A40: Уменьшение прочих остатков денежных средств бюджетов поселений | B40: 720 | C40: 000 01050201130000 610 | D40: 298573441.1 | E40: 90759977.56 | F40: x
A43: Глава администрации | D43: Д.В. Николаев
A46: Заведующий отделом финансов | D46: И.Ю. Жолудева
A48: 06 мая 2015 года
